[Event "XIII Mediterranean Championship 2023"]
[Site "Castell-Platja d Aro"]
[Date "2023.11.10"]
[Round "8.25"]
[White "Galvan Cipriani, Viviana"]
[Black "Zvereva, Marija"]
[Result "1-0"]
[ECO "E68"]
[WhiteElo "2077"]
[BlackElo "2144"]
[Annotator "RC"]
[PlyCount "85"]
[EventDate "2023.10.26"]
[EventType "swiss"]
[EventCountry "ESP"]
[SourceTitle "playchess.com"]
[Source "ChessBase"]
[SourceQuality "1"]
[TimeControl "5400+30"]

1. c4 {[%emt 1:31:00]} Nf6 {[%emt 0:00:44]} 2. Nc3 {[%emt 0:00:30]} d6 {[%emt 0:00:25]} 3. g3 {[%emt 0:00:00]} e5 {[%emt 0:00:25]} 4. Bg2 {[%emt 0:00:00]} g6 {[%emt 0:02:37]} 5. Nf3 {[%emt 0:00:00]} Bg7 {[%emt 0:00:25]} 6. d4 {[%emt 0:00:00]} Nbd7 {[%emt 0:00:47]} 7. O-O {[%emt 0:00:00]} O-O {[%emt 0:00:20]} 8. e4 {[%emt 0:00:00]} exd4 {[%emt 0:02:42]} 9. Nxd4 {[%emt 0:00:00]} Re8 {[%emt 0:00:13]} 10. Re1 {[%emt 0:00:00]} Nc5 {[%emt 0:00:51]} 11. h3 {[%emt 0:00:00]} h6 {[%emt 0:02:25]} 12. Rb1 {[%emt 0:00:00]} Kh7 {[%emt 0:05:54]} 13. b4 {[%emt 0:00:00]} Ne6 {[%emt 0:00:11]} 14. Nc2 {[%emt 0:00:00]} Nh5 {[%emt 0:12:48]} 15. Qd3 {[%emt 0:00:00]} Ng5 {[%emt 1:07:13]} 16. g4 {[%emt 0:00:00]} Nf6 {[%emt 0:00:00]} 17. f4 {[%emt 0:00:00]} Ne6 {[%emt 0:00:00]} 18. Bd2 {[%emt 0:00:00]} Nd7 {[%emt 0:00:00]} 19. Rbd1 {[%emt 0:00:00]} a5 {[%emt 0:00:00]} 20. a3 {[%emt 0:00:00]} Kh8 {[%emt 0:00:00]} 21. Rf1 {[%emt 0:00:00]} axb4 {[%emt 0:00:00]} 22. axb4 {[%emt 0:00:00]} Nb6 {[%emt 0:00:00]} 23. Nd5 {[%emt 0:00:00]} c6 {[%emt 0:00:00]} 24. Nxb6 {[%emt 0:00:00]} Qxb6+ {[%emt 0:00:00]} 25. Be3 {[%emt 0:00:00]} Qd8 {[%emt 0:00:00]} 26. f5 {[%emt 0:00:00]} Ng5 {[%emt 0:00:00]} 27. Qxd6 {[%emt 0:00:00]} Qxd6 {[%emt 0:00:00]} 28. Rxd6 {[%emt 0:00:00]} Ra2 {[%emt 0:00:00]} 29. Bxg5 {[%emt 0:00:00]} hxg5 {[%emt 0:00:00]} 30. Rf2 {[%emt 0:00:00]} gxf5 {[%emt 0:00:00]} 31. gxf5 {[%emt 0:14:30]} Be5 {[%emt 0:00:00]} 32. Rd3 {[%emt 0:00:00]} Rb2 {[%emt 0:00:00]} 33. Bf3 {[%emt 0:00:00]} Kg7 {[%emt 0:09:00]} 34. c5 {[%emt 0:00:00]} Kf6 {[%emt 0:00:00]} 35. Kg2 {[%emt 0:00:00]} Ke7 {[%emt 0:00:00]} 36. Bh5 {[%emt 0:00:00]} Kf6 {[%emt 0:00:00]} 37. Ne3 {[%emt 0:00:00]} Kg7 {[%emt 0:00:00]} 38. Rxb2 {[%emt 0:00:00]} Bxb2 {[%emt 0:00:00]} 39. Bf3 {[%emt 0:00:00]} Be5 {[%emt 0:00:00]} 40. Nc4 {[%emt 0:00:00]} Bc7 {[%emt 0:00:09]} 41. Rd1 {[%emt 0:00:00]} Kf6 {[%emt 0:02:44]} 42. Kf2 {[%emt 0:00:00]} Ke7 {[%emt 0:00:28]} 43. Bg4 {[%emt 0:00:00]} 1-0

[Event "XIII Mediterranean Championship 2023"]
[Site "Castell-Platja d Aro"]
[Date "2023.11.10"]
[Round "8.26"]
[White "Vinals Rioja, Jaume"]
[Black "Diaz Comas, Jordi"]
[Result "1/2-1/2"]
[ECO "D04"]
[WhiteElo "1838"]
[BlackElo "1837"]
[Annotator "NA RC"]
[PlyCount "22"]
[EventDate "2023.10.26"]
[EventType "swiss"]
[EventCountry "ESP"]
[SourceTitle "playchess.com"]
[Source "ChessBase"]
[SourceQuality "1"]
[TimeControl "5400+30"]

1. d4 {[%emt 1:31:00]} Nf6 {[%emt 1:31:00]} 2. Nf3 {[%emt 0:00:30]} d5 {[%emt 0:00:30]} 3. e3 {[%emt 0:00:30]} Bf5 {[%emt 0:00:30]} 4. Bd3 {[%emt 0:00:30]} Bxd3 {[%emt 0:00:30]} 5. Qxd3 {[%emt 0:00:30]} c6 {[%emt 0:00:30]} 6. Nbd2 {[%emt 0:00:30]} e6 {[%emt 0:00:30]} 7. Ne5 {[%emt 0:00:30]} Nbd7 {[%emt 0:00:30]} 8. f4 {[%emt 0:00:30]} g6 {[%emt 0:00:30]} 9. c3 {[%emt 0:00:30]} Bg7 {[%emt 0:00:30]} 10. b3 {[%emt 0:00:30]} Qa5 {[%emt 0:00:30]} 11. a4 {[%emt 0:00:30]} Qd8 {[%emt 0:00:30]} 1/2-1/2

[Event "XIII Mediterranean Championship 2023"]
[Site "Castell-Platja d Aro"]
[Date "2023.11.10"]
[Round "8.27"]
[White "Lunin Bohomolets, Iliia"]
[Black "Hernando Rodrigo, Lourdes"]
[Result "1-0"]
[ECO "D30"]
[WhiteElo "1850"]
[BlackElo "1625"]
[Annotator "NA RC"]
[PlyCount "59"]
[EventDate "2023.10.26"]
[EventType "swiss"]
[EventCountry "ESP"]
[SourceTitle "playchess.com"]
[Source "ChessBase"]
[SourceQuality "1"]
[TimeControl "5400+30"]

1. d4 d5 2. Nf3 e6 3. c4 h6 4. g3 Nf6 5. Bg2 Bd6 6. O-O c6 7. Nbd2 O-O 8. b3 Nbd7 9. Bb2 Re8 10. Ne5 Qc7 11. Nd3 c5 12. Rc1 b6 13. cxd5 exd5 14. b4 c4 15. Nxc4 Qb8 16. Nxd6 Qxd6 17. Rc2 Ba6 18. Qd2 Ne4 19. Qf4 Bxd3 20. Qxd6 Nxd6 21. exd3 Nf6 22. Bh3 Re7 23. Ba3 Nb5 24. Bb2 Nc7 25. Bc1 Nb5 26. Be3 g5 27. Rc6 Kg7 28. Rfc1 Rae8 29. a4 Na3 30. R6c3 1-0

[Event "XIII Mediterranean Championship 2023"]
[Site "Castell-Platja d Aro"]
[Date "2023.11.10"]
[Round "8.28"]
[White "Vinas Racionero, Josep"]
[Black "Vidal Palou, Jordi"]
[Result "1/2-1/2"]
[ECO "B01"]
[WhiteElo "2075"]
[BlackElo "1620"]
[Annotator "NA RC"]
[PlyCount "49"]
[EventDate "2023.10.26"]
[EventType "swiss"]
[EventCountry "ESP"]
[SourceTitle "playchess.com"]
[Source "ChessBase"]
[SourceQuality "1"]
[TimeControl "5400+30"]

1. e4 {[%emt 1:31:00]} d5 {[%emt 1:31:00]} 2. exd5 {[%emt 0:00:30]} Qxd5 {[%emt 0:00:30]} 3. Nc3 {[%emt 0:00:30]} Qa5 {[%emt 0:00:30]} 4. d4 {[%emt 0:00:30]} c6 {[%emt 0:00:30]} 5. Bc4 {[%emt 0:00:30]} Nf6 {[%emt 0:00:30]} 6. Nf3 {[%emt 0:00:30]} e6 {[%emt 0:00:30]} 7. Bd2 {[%emt 0:00:30]} Qc7 {[%emt 0:00:30]} 8. Qe2 {[%emt 0:00:30]} b5 {[%emt 0:00:30]} 9. Bb3 {[%emt 0:00:30]} Bd6 {[%emt 0:00:30]} 10. d5 {[%emt 0:00:30]} O-O {[%emt 0:00:30]} 11. dxc6 {[%emt 0:00:30]} a6 {[%emt 0:00:30]} 12. O-O-O {[%emt 0:00:30]} Nxc6 {[%emt 0:00:30]} 13. Ne4 {[%emt 0:00:30]} Be7 {[%emt 0:00:30]} 14. g4 {[%emt 0:00:30]} Na5 {[%emt 0:00:30]} 15. Bxa5 {[%emt 0:00:30]} Qxa5 {[%emt 0:00:30]} 16. g5 {[%emt 0:00:30]} Nxe4 {[%emt 0:00:30]} 17. Qxe4 {[%emt 0:00:30]} Qb6 {[%emt 0:00:30]} 18. h4 {[%emt 0:00:30]} Bb7 {[%emt 0:00:30]} 19. Qg4 {[%emt 0:00:30]} Qxf2 {[%emt 0:00:30]} 20. Rhf1 {[%emt 0:00:30]} Qe3+ {[%emt 0:00:30]} 21. Kb1 {[%emt 0:00:30]} Bxf3 {[%emt 0:00:30]} 22. Rxf3 {[%emt 0:00:30]} Qe2 {[%emt 0:00:30]} 23. Rdf1 {[%emt 0:00:30]} Rad8 {[%emt 0:00:30]} 24. a3 {[%emt 0:00:30]} a5 {[%emt 0:00:30]} 25. a4 {[%emt 0:00:30]} 1/2-1/2

[Event "XIII Mediterranean Championship 2023"]
[Site "Castell-Platja d Aro"]
[Date "2023.11.10"]
[Round "8.29"]
[White "Vidal Traves, Marti"]
[Black "Hernando Rodrigo, Inmaculada"]
[Result "0-1"]
[ECO "C54"]
[WhiteElo "1631"]
[BlackElo "1734"]
[Annotator "NA RC"]
[PlyCount "86"]
[EventDate "2023.10.26"]
[EventType "swiss"]
[EventCountry "ESP"]
[SourceTitle "playchess.com"]
[Source "ChessBase"]
[SourceQuality "1"]
[TimeControl "5400+30"]

1. e4 {[%emt 1:31:00]} e5 {[%emt 1:31:00]} 2. Nf3 {[%emt 0:00:30]} Nc6 {[%emt 0:00:30]} 3. Bc4 {[%emt 0:00:30]} Nf6 {[%emt 0:00:30]} 4. d3 {[%emt 0:00:30]} Bc5 {[%emt 0:00:30]} 5. O-O {[%emt 0:00:30]} d6 {[%emt 0:00:30]} 6. h3 {[%emt 0:00:30]} h6 {[%emt 0:00:30]} 7. c3 {[%emt 0:00:30]} g5 {[%emt 0:00:30]} 8. d4 {[%emt 0:00:30]} exd4 {[%emt 0:00:30]} 9. cxd4 {[%emt 0:00:30]} Bb6 {[%emt 0:00:30]} 10. e5 {[%emt 0:00:30]} dxe5 {[%emt 0:00:30]} 11. dxe5 {[%emt 0:00:30]} Qxd1 {[%emt 0:00:30]} 12. Rxd1 {[%emt 0:00:30]} Ne4 {[%emt 0:00:30]} 13. Nbd2 {[%emt 0:00:30]} Nxf2 {[%emt 0:00:30]} 14. Rf1 {[%emt 0:00:30]} Nxh3+ {[%emt 0:00:30]} 15. Kh2 {[%emt 0:00:30]} Nf4 {[%emt 0:00:30]} 16. Ne4 {[%emt 0:00:30]} Ng6 {[%emt 0:00:30]} 17. b3 {[%emt 0:00:30]} Be6 {[%emt 0:00:30]} 18. Nf6+ {[%emt 0:00:30]} Kd8 19. Bb2 {[%emt 0:00:30]} Bc5 {[%emt 0:01:00]} 20. Ne4 {[%emt 0:00:30]} Be7 {[%emt 0:00:30]} 21. Rad1+ {[%emt 0:00:30]} Ke8 {[%emt 0:00:30]} 22. Bxe6 {[%emt 0:00:30]} fxe6 {[%emt 0:00:30]} 23. Nf6+ {[%emt 0:00:30]} Bxf6 {[%emt 0:00:30]} 24. exf6 {[%emt 0:00:30]} Rf8 {[%emt 0:00:30]} 25. Rfe1 {[%emt 0:00:30]} Nd8 {[%emt 0:00:30]} 26. Rd2 {[%emt 0:00:30]} a5 {[%emt 0:00:30]} 27. Red1 {[%emt 0:00:30]} Rf7 {[%emt 0:00:30]} 28. Nd4 {[%emt 0:00:30]} Nf4 {[%emt 0:00:30]} 29. Nb5 {[%emt 0:00:30]} Nd5 {[%emt 0:00:30]} 30. Re1 {[%emt 0:00:30]} Kf8 {[%emt 0:00:30]} 31. Red1 {[%emt 0:00:30]} a4 {[%emt 0:00:30]} 32. Ba3+ {[%emt 0:00:30]} Ke8 {[%emt 0:00:30]} 33. Re2 {[%emt 0:00:30]} Nxf6 {[%emt 0:00:30]} 34. Rc2 {[%emt 0:00:30]} Nd5 {[%emt 0:00:30]} 35. Rxd5 {[%emt 0:00:30]} exd5 {[%emt 0:00:30]} 36. Nxc7+ {[%emt 0:00:30]} Rxc7 {[%emt 0:00:30]} 37. Rxc7 {[%emt 0:00:30]} Nc6 {[%emt 0:00:30]} 38. Rxb7 {[%emt 0:00:30]} d4 {[%emt 0:00:30]} 39. Rh7 {[%emt 0:00:30]} Ra5 {[%emt 0:00:30]} 40. b4 {[%emt 0:00:30]} Rd5 {[%emt 0:00:30]} 41. Rxh6 {[%emt 0:00:30]} d3 {[%emt 0:00:30]} 42. Bc1 {[%emt 0:00:30]} Ne5 {[%emt 0:00:30]} 43. Bd2 {[%emt 0:00:30]} Ng4+ {[%emt 0:00:30]} 0-1

[Event "XIII Mediterranean Championship 2023"]
[Site "Castell-Platja d Aro"]
[Date "2023.11.10"]
[Round "8.30"]
[White "Leon Escoda, Manel"]
[Black "Ballo Serrano, Jan"]
[Result "*"]
[ECO "E09"]
[WhiteElo "1682"]
[BlackElo "1512"]
[Annotator "NA RC"]
[PlyCount "106"]
[EventDate "2023.10.26"]
[EventType "swiss"]
[EventCountry "ESP"]
[SourceTitle "playchess.com"]
[Source "ChessBase"]
[SourceQuality "1"]
[TimeControl "5400+30"]

1. d4 {[%emt 1:31:00]} Nf6 {[%emt 1:31:00]} 2. c4 {[%emt 0:00:30]} e6 {[%emt 0:00:30]} 3. Nf3 {[%emt 0:00:30]} Be7 {[%emt 0:00:30]} 4. g3 {[%emt 0:00:30]} d5 {[%emt 0:00:30]} 5. Bg2 {[%emt 0:00:30]} O-O {[%emt 0:00:30]} 6. O-O {[%emt 0:00:30]} c6 {[%emt 0:00:30]} 7. Qc2 {[%emt 0:00:30]} Nbd7 {[%emt 0:00:30]} 8. Nbd2 {[%emt 0:00:30]} b6 {[%emt 0:00:30]} 9. e4 {[%emt 0:00:30]} dxe4 {[%emt 0:00:30]} 10. Nxe4 {[%emt 0:00:30]} Nxe4 {[%emt 0:00:30]} 11. Qxe4 {[%emt 0:00:30]} Bb7 {[%emt 0:00:30]} 12. Ne5 {[%emt 0:00:30]} Nxe5 {[%emt 0:00:30]} 13. dxe5 {[%emt 0:00:30]} Rb8 {[%emt 0:00:30]} 14. Qg4 {[%emt 0:00:30]} Kh8 {[%emt 0:00:30]} 15. Be3 {[%emt 0:00:30]} Qc7 {[%emt 0:00:30]} 16. Rad1 {[%emt 0:00:30]} c5 {[%emt 0:00:30]} 17. Bxb7 {[%emt 0:00:30]} Qxb7 {[%emt 0:00:30]} 18. Rd3 {[%emt 0:00:30]} Rbd8 {[%emt 0:00:30]} 19. Rfd1 {[%emt 0:00:30]} Qc7 {[%emt 0:00:30]} 20. Qe4 {[%emt 0:00:30]} h6 {[%emt 0:00:30]} 21. b3 {[%emt 0:00:30]} Rxd3 {[%emt 0:00:30]} 22. Rxd3 {[%emt 0:00:30]} Rd8 {[%emt 0:00:30]} 23. Rxd8+ {[%emt 0:00:30]} Bxd8 {[%emt 0:00:30]} 24. Kf1 {[%emt 0:00:30]} Qd7 {[%emt 0:00:30]} 25. Ke2 {[%emt 0:00:30]} Be7 {[%emt 0:00:30]} 26. Qd3 {[%emt 0:00:30]} Qc7 {[%emt 0:00:30]} 27. Qe4 {[%emt 0:00:30]} a5 {[%emt 0:00:30]} 28. Kd2 {[%emt 0:00:30]} Qd7+ {[%emt 0:00:30]} 29. Kc2 {[%emt 0:00:30]} g5 {[%emt 0:00:30]} 30. g4 {[%emt 0:00:30]} Kg7 {[%emt 0:00:30]} 31. Bd2 {[%emt 0:00:30]} a4 {[%emt 0:00:30]} 32. Qd3 {[%emt 0:00:30]} Qa7 {[%emt 0:00:30]} 33. bxa4 {[%emt 0:00:30]} Qxa4+ {[%emt 0:00:30]} 34. Qb3 {[%emt 0:00:30]} Qc6 {[%emt 0:00:30]} 35. Qb5 {[%emt 0:00:30]} Qe4+ {[%emt 0:00:30]} 36. Kb3 {[%emt 0:00:30]} Qb1+ {[%emt 0:00:30]} 37. Kc3 {[%emt 0:00:30]} Qxa2 {[%emt 0:00:30]} 38. Qxb6 {[%emt 0:00:30]} Qa8 {[%emt 0:00:30]} 39. Be3 {[%emt 0:00:30]} Qa1+ {[%emt 0:00:30]} 40. Kd3 {[%emt 0:00:30]} Qxe5 {[%emt 0:00:30]} 41. Qb7 {[%emt 0:00:30]} Qd6+ {[%emt 0:00:30]} 42. Ke2 {[%emt 0:00:30]} Bf6 {[%emt 0:00:30]} 43. h3 {[%emt 0:00:30]} Bd4 {[%emt 0:00:30]} 44. Qe4 {[%emt 0:00:30]} Bxe3 {[%emt 0:00:30]} 45. Qxe3 {[%emt 0:00:30]} Qd4 {[%emt 0:00:30]} 46. Qxd4+ {[%emt 0:00:30]} cxd4 {[%emt 0:00:30]} 47. Kd3 {[%emt 0:00:30]} e5 {[%emt 0:00:30]} 48. f3 {[%emt 0:00:30]} Kf6 {[%emt 0:00:30]} 49. c5 {[%emt 0:00:30]} Ke6 {[%emt 0:00:30]} 50. Kc4 {[%emt 0:00:30]} Kd7 {[%emt 0:00:30]} 51. Kb4 {[%emt 0:00:30]} Kc6 {[%emt 0:00:30]} 52. Kc4 {[%emt 0:00:30]} Kb7 {[%emt 0:00:30]} 53. Kb4 {[%emt 0:00:30]} Ka6 {[%emt 0:00:30]} *

[Event "XIII Mediterranean Championship 2023"]
[Site "Castell-Platja d Aro"]
[Date "2023.11.10"]
[Round "8.30"]
[White "Vidal Traves, Marti"]
[Black "Hernando Rodrigo, Inmaculada"]
[Result "0-1"]
[ECO "E09"]
[WhiteElo "1631"]
[BlackElo "1734"]
[Annotator "NA RC"]
[PlyCount "144"]
[EventDate "2023.10.26"]
[EventType "swiss"]
[EventCountry "ESP"]
[SourceTitle "playchess.com"]
[Source "ChessBase"]
[SourceQuality "1"]
[TimeControl "5400+30"]

1. d4 {[%emt 1:31:00]} Nf6 {[%emt 1:31:00]} 2. c4 {[%emt 0:00:30]} e6 {[%emt 0:00:30]} 3. Nf3 {[%emt 0:00:30]} Be7 {[%emt 0:00:30]} 4. g3 {[%emt 0:00:30]} d5 {[%emt 0:00:30]} 5. Bg2 {[%emt 0:00:30]} O-O {[%emt 0:00:30]} 6. O-O {[%emt 0:00:30]} c6 {[%emt 0:00:30]} 7. Qc2 {[%emt 0:00:30]} Nbd7 {[%emt 0:00:30]} 8. Nbd2 {[%emt 0:00:30]} b6 {[%emt 0:00:30]} 9. e4 {[%emt 0:00:30]} dxe4 {[%emt 0:00:30]} 10. Nxe4 {[%emt 0:00:30]} Nxe4 {[%emt 0:00:30]} 11. Qxe4 {[%emt 0:00:30]} Bb7 {[%emt 0:00:30]} 12. Ne5 {[%emt 0:00:30]} Nxe5 {[%emt 0:00:30]} 13. dxe5 {[%emt 0:00:30]} Rb8 {[%emt 0:00:30]} 14. Qg4 {[%emt 0:00:30]} Kh8 {[%emt 0:00:30]} 15. Be3 {[%emt 0:00:30]} Qc7 {[%emt 0:00:30]} 16. Rad1 {[%emt 0:00:30]} c5 {[%emt 0:00:30]} 17. Bxb7 {[%emt 0:00:30]} Qxb7 {[%emt 0:00:30]} 18. Rd3 {[%emt 0:00:30]} Rbd8 {[%emt 0:00:30]} 19. Rfd1 {[%emt 0:00:30]} Qc7 {[%emt 0:00:30]} 20. Qe4 {[%emt 0:00:30]} h6 {[%emt 0:00:30]} 21. b3 {[%emt 0:00:30]} Rxd3 {[%emt 0:00:30]} 22. Rxd3 {[%emt 0:00:30]} Rd8 {[%emt 0:00:30]} 23. Rxd8+ {[%emt 0:00:30]} Bxd8 {[%emt 0:00:30]} 24. Kf1 {[%emt 0:00:30]} Qd7 {[%emt 0:00:30]} 25. Ke2 {[%emt 0:00:30]} Be7 {[%emt 0:00:30]} 26. Qd3 {[%emt 0:00:30]} Qc7 {[%emt 0:00:30]} 27. Qe4 {[%emt 0:00:30]} a5 {[%emt 0:00:30]} 28. Kd2 {[%emt 0:00:30]} Qd7+ {[%emt 0:00:30]} 29. Kc2 {[%emt 0:00:30]} g5 {[%emt 0:00:30]} 30. g4 {[%emt 0:00:30]} Kg7 {[%emt 0:00:30]} 31. Bd2 {[%emt 0:00:30]} a4 {[%emt 0:00:30]} 32. Qd3 {[%emt 0:00:30]} Qa7 {[%emt 0:00:30]} 33. bxa4 {[%emt 0:00:30]} Qxa4+ {[%emt 0:00:30]} 34. Qb3 {[%emt 0:00:30]} Qc6 {[%emt 0:00:30]} 35. Qb5 {[%emt 0:00:30]} Qe4+ {[%emt 0:00:30]} 36. Kb3 {[%emt 0:00:30]} Qb1+ {[%emt 0:00:30]} 37. Kc3 {[%emt 0:00:30]} Qxa2 {[%emt 0:00:30]} 38. Qxb6 {[%emt 0:00:30]} Qa8 {[%emt 0:00:30]} 39. Be3 {[%emt 0:00:30]} Qa1+ {[%emt 0:00:30]} 40. Kd3 {[%emt 0:00:30]} Qxe5 {[%emt 0:00:30]} 41. Qb7 {[%emt 0:00:30]} Qd6+ {[%emt 0:00:30]} 42. Ke2 {[%emt 0:00:30]} Bf6 {[%emt 0:00:30]} 43. h3 {[%emt 0:00:30]} Bd4 {[%emt 0:00:30]} 44. Qe4 {[%emt 0:00:30]} Bxe3 {[%emt 0:00:30]} 45. Qxe3 {[%emt 0:00:30]} Qd4 {[%emt 0:00:30]} 46. Qxd4+ {[%emt 0:00:30]} cxd4 {[%emt 0:00:30]} 47. Kd3 {[%emt 0:00:30]} e5 {[%emt 0:00:30]} 48. f3 {[%emt 0:00:30]} Kf6 {[%emt 0:00:30]} 49. c5 {[%emt 0:00:30]} Ke6 {[%emt 0:00:30]} 50. Kc4 {[%emt 0:00:30]} Kd7 {[%emt 0:00:30]} 51. Kb4 {[%emt 0:00:30]} Kc6 {[%emt 0:00:30]} 52. Kc4 {[%emt 0:00:30]} Kb7 {[%emt 0:00:30]} 53. Kb4 {[%emt 0:00:30]} Ka6 {[%emt 0:00:30]} 54. Ka4 {[%emt 0:00:30]} d3 {[%emt 0:00:30]} 55. Kb3 {[%emt 0:00:30]} d2 {[%emt 0:00:30]} 56. Kc2 {[%emt 0:00:30]} Kb5 {[%emt 0:00:30]} 57. Kxd2 {[%emt 0:00:30]} Kxc5 {[%emt 0:00:30]} 58. Ke3 {[%emt 0:00:30]} Kd5 {[%emt 0:00:30]} 59. Kd3 {[%emt 0:00:30]} Ke6 {[%emt 0:00:30]} 60. Ke3 {[%emt 0:00:30]} f5 {[%emt 0:00:30]} 61. Kd3 {[%emt 0:00:30]} f4 {[%emt 0:00:30]} 62. Ke4 {[%emt 0:00:30]} Kd6 {[%emt 0:00:30]} 63. Kf5 {[%emt 0:00:30]} Kd5 {[%emt 0:00:30]} 64. Kg6 {[%emt 0:00:30]} e4 {[%emt 0:00:30]} 65. Kxh6 {[%emt 0:00:30]} exf3 {[%emt 0:00:30]} 66. Kxg5 {[%emt 0:00:30]} Ke4 {[%emt 0:00:30]} 67. h4 {[%emt 0:00:30]} f2 {[%emt 0:00:30]} 68. h5 {[%emt 0:00:30]} f1=Q {[%emt 0:00:30]} 69. Kg6 {[%emt 0:00:30]} Qa6+ {[%emt 0:00:30]} 70. Kg7 {[%emt 0:00:30]} Qb7+ {[%emt 0:00:30]} 71. Kg6 {[%emt 0:00:30]} Qc6+ {[%emt 0:00:30]} 72. Kg7 {[%emt 0:00:30]} Qd7+ {[%emt 0:00:30]} 0-1

[Event "XIII Mediterranean Championship 2023"]
[Site "Castell-Platja d Aro"]
[Date "2023.11.10"]
[Round "8.31"]
[White "Garcia Rodriguez, Laia"]
[Black "Giro Castellet, Esteve"]
[Result "1/2-1/2"]
[ECO "B02"]
[WhiteElo "1811"]
[BlackElo "1633"]
[Annotator "NA RC"]
[PlyCount "75"]
[EventDate "2023.10.26"]
[EventType "swiss"]
[EventCountry "ESP"]
[SourceTitle "playchess.com"]
[Source "ChessBase"]
[SourceQuality "1"]
[TimeControl "5400+30"]

1. e4 {[%emt 0:00:09]} d5 {[%emt 0:00:15]} 2. exd5 {[%emt 0:00:27]} Nf6 {[%emt 0:00:05]} 3. Nc3 {[%emt 0:00:55]} Nxd5 {[%emt 0:00:50]} 4. Nf3 {[%emt 0:01:30]} e6 {[%emt 0:02:02]} 5. Bc4 {[%emt 0:02:49]} c6 {[%emt 0:03:39]} 6. O-O {[%emt 0:03:48]} Be7 {[%emt 0:01:40]} 7. d4 {[%emt 0:04:31]} O-O {[%emt 0:00:46]} 8. Nxd5 {[%emt 0:00:46]} exd5 {[%emt 0:00:20]} 9. Bd3 {[%emt 0:00:26]} Bg4 {[%emt 0:01:51]} 10. c3 {[%emt 0:05:31]} Nd7 {[%emt 0:01:01]} 11. Bf4 {[%emt 0:04:03]} Nf6 {[%emt 0:02:31]} 12. h3 {[%emt 0:08:11]} Bh5 {[%emt 0:03:05]} 13. Be2 {[%emt 0:01:05]} Ne4 {[%emt 0:03:25]} 14. Ne5 {[%emt 0:05:06]} Bxe2 {[%emt 0:00:27]} 15. Qxe2 {[%emt 0:58:43]} Bg5 {[%emt 0:04:22]} 16. Qe3 {[%emt 0:00:00]} f6 {[%emt 0:05:22]} 17. Bxg5 {[%emt 0:00:00]} Nxg5 {[%emt 0:00:45]} 18. Nd3 {[%emt 0:00:00]} Qc7 {[%emt 0:03:02]} 19. Qd2 {[%emt 0:00:00]} Rae8 {[%emt 0:01:54]} 20. Rfe1 {[%emt 0:00:00]} Ne4 {[%emt 0:06:48]} 21. Qc2 {[%emt 0:00:00]} Re7 {[%emt 0:08:51]} 22. Re3 {[%emt 0:00:00]} Rfe8 {[%emt 0:01:28]} 23. Rae1 {[%emt 0:00:00]} Ng5 {[%emt 0:05:27]} 24. Qc1 {[%emt 0:00:00]} Ne4 {[%emt 0:07:38]} 25. b3 {[%emt 0:00:00]} Nd6 {[%emt 0:07:20]} 26. c4 {[%emt 0:00:00]} dxc4 {[%emt 0:06:39]} 27. bxc4 {[%emt 0:00:00]} Nf5 {[%emt 0:01:47]} 28. Rxe7 {[%emt 0:00:00]} Rxe7 {[%emt 0:00:36]} 29. Rxe7 {[%emt 0:00:00]} Nxe7 {[%emt 0:02:45]} 30. Qe3 {[%emt 0:00:00]} b6 {[%emt 0:02:36]} 31. Qe6+ {[%emt 0:00:00]} Kf8 {[%emt 0:00:31]} 32. d5 {[%emt 0:00:00]} cxd5 {[%emt 0:02:08]} 33. cxd5 {[%emt 0:00:00]} Qc4 {[%emt 0:02:42]} 34. Ne1 {[%emt 0:03:38]} Qxd5 {[%emt 0:01:15]} 35. Qe2 {[%emt 0:00:18]} Qe5 {[%emt 0:03:05]} 36. Qd2 {[%emt 0:00:26]} Qd5 {[%emt 0:00:50]} 37. Qe2 {[%emt 0:00:55]} Qe5 {[%emt 0:00:09]} 38. Qd2 {[%emt 0:00:31]} 1/2-1/2

[Event "XIII Mediterranean Championship 2023"]
[Site "Castell-Platja d Aro"]
[Date "2023.11.10"]
[Round "8.32"]
[White "Teixidor Banus, Josep Maria"]
[Black "Delbos, Jean-Louis"]
[Result "1/2-1/2"]
[ECO "D00"]
[WhiteElo "1669"]
[BlackElo "1573"]
[Annotator "NA RC"]
[PlyCount "34"]
[EventDate "2023.10.26"]
[EventType "swiss"]
[EventCountry "ESP"]
[SourceTitle "playchess.com"]
[Source "ChessBase"]
[SourceQuality "1"]
[TimeControl "5400+30"]

1. d4 {[%emt 0:00:09]} d5 {[%emt 0:00:10]} 2. Bf4 {[%emt 0:00:09]} c5 {[%emt 0:00:18]} 3. e3 {[%emt 0:00:21]} Nc6 {[%emt 0:00:16]} 4. c3 {[%emt 0:02:12]} Nf6 {[%emt 0:01:09]} 5. Nd2 {[%emt 0:00:13]} cxd4 {[%emt 0:00:50]} 6. exd4 {[%emt 0:00:26]} Bg4 {[%emt 0:01:12]} 7. Be2 {[%emt 0:02:50]} Bxe2 {[%emt 0:01:48]} 8. Qxe2 {[%emt 0:00:18]} Qb6 {[%emt 0:04:35]} 9. Rb1 {[%emt 0:01:40]} e6 {[%emt 0:01:29]} 10. h3 {[%emt 0:01:18]} Be7 {[%emt 0:01:25]} 11. Ngf3 {[%emt 0:00:14]} O-O {[%emt 0:01:43]} 12. O-O {[%emt 1:26:40]} Rfe8 {[%emt 1:21:35]} 13. Ne5 {[%emt 0:00:00]} Nxe5 {[%emt 0:00:00]} 14. Bxe5 {[%emt 0:00:00]} Nd7 {[%emt 0:00:00]} 15. Bh2 {[%emt 0:00:00]} a5 {[%emt 0:00:00]} 16. Qd3 {[%emt 0:00:00]} Qa6 {[%emt 0:00:00]} 17. Qxa6 {[%emt 0:00:00]} Rxa6 {[%emt 0:00:00]} 1/2-1/2

[Event "XIII Mediterranean Championship 2023"]
[Site "Castell-Platja d Aro"]
[Date "2023.11.11"]
[Round "9.1"]
[White "Iermito, Sebastian"]
[Black "Gines Esteo, Pedro Antonio"]
[Result "1/2-1/2"]
[ECO "C67"]
[WhiteElo "2521"]
[BlackElo "2490"]
[Annotator "RC"]
[PlyCount "35"]
[EventDate "2023.10.26"]
[EventType "swiss"]
[EventCountry "ESP"]
[SourceTitle "playchess.com"]
[Source "ChessBase"]
[SourceQuality "1"]
[TimeControl "5400+30"]

1. e4 {[%emt 0:00:03]} e5 {[%emt 0:24:21]} 2. Nf3 {[%emt 0:00:04]} Nc6 {[%emt 0:00:05]} 3. Bb5 {[%emt 0:00:07]} Nf6 {[%emt 0:00:38]} 4. O-O {[%emt 0:00:58]} Nxe4 {[%emt 0:00:10]} 5. Re1 {[%emt 0:00:04]} Nd6 {[%emt 0:00:06]} 6. Nxe5 {[%emt 0:00:16]} Be7 {[%emt 0:00:09]} 7. Bf1 {[%emt 0:00:27]} Nxe5 {[%emt 0:00:05]} 8. Rxe5 {[%emt 0:00:01]} O-O {[%emt 0:00:06]} 9. Nc3 {[%emt 0:00:50]} Ne8 {[%emt 0:00:57]} 10. Nd5 {[%emt 0:00:47]} Bd6 {[%emt 0:00:05]} 11. Re1 {[%emt 0:00:13]} c6 {[%emt 0:00:12]} 12. Ne3 {[%emt 0:00:15]} Bc7 {[%emt 0:00:16]} 13. Nf5 {[%emt 0:00:19]} d5 {[%emt 0:00:11]} 14. Ne7+ {[%emt 0:00:03]} Kh8 {[%emt 0:00:04]} 15. Nxc8 {[%emt 0:00:04]} Rxc8 {[%emt 0:00:05]} 16. d3 {[%emt 0:05:30]} f5 {[%emt 0:04:52]} 17. Qf3 {[%emt 0:00:21]} Qf6 {[%emt 0:10:07]} 18. Rb1 {[%emt 1:29:08]} 1/2-1/2